[Event "Czech Youth U14 Boys 2024"]
[Site "Kouty nad Desnou"]
[Date "2024.03.09"]
[Round "1.1"]
[White "Komarek, Tobias"]
[Black "Topencik, Bruno"]
[Result "0-1"]
[ECO "A40"]
[WhiteElo "1822"]
[BlackElo "2006"]
[Annotator "RC"]
[PlyCount "84"]
[EventDate "2024.03.10"]
[EventType "swiss"]
[EventRounds "9"]
[EventCountry "CZE"]
[SourceTitle "playchess.com"]
[Source "ChessBase"]
[SourceQuality "1"]
[TimeControl "40/5400+30:1800+30"]

1. d4 Nf6 2. c4 e6 3. g3 Bb4+ 4. Bd2 Bxd2+ 5. Nxd2 d5 6. Bg2 O-O 7. Ngf3 c6 8. O-O Nbd7 9. Qc2 b6 10. e4 dxe4 11. Nxe4 Nxe4 12. Qxe4 Bb7 13. Rfd1 Qe7 14. Ne5 Nxe5 15. Qxe5 Qf6 16. Qxf6 gxf6 17. d5 cxd5 18. cxd5 exd5 19. Bxd5 Bxd5 20. Rxd5 Rac8 21. Rd7 Rc2 22. b4 Re8 23. Rxa7 Ree2 24. Rf1 b5 25. a3 Ra2 26. Ra5 Re5 27. Rd1 Ree2 28. Rf1 Re5 29. Kg2 Kg7 30. g4 Rd5 31. h3 Re5 32. Kg3 Rd5 33. f4 h5 34. Rf3 hxg4 35. Kxg4 f5+ 36. Kh4 Kh7 37. Kg5 Rg2+ 38. Kh4 Rd6 39. Rg3 Rh6+ 40. Kg5 Rxg3+ 41. Kxf5 Rgxh3 42. Ke4 Kg7 0-1

[Event "Czech Youth U14 Boys 2024"]
[Site "Kouty nad Desnou"]
[Date "2024.03.09"]
[Round "1.2"]
[White "Martirosyan, David"]
[Black "Kutil, Adam"]
[Result "1-0"]
[ECO "E61"]
[WhiteElo "1981"]
[BlackElo "1820"]
[Annotator "RC"]
[PlyCount "67"]
[EventDate "2024.03.10"]
[EventType "swiss"]
[EventRounds "9"]
[EventCountry "CZE"]
[SourceTitle "playchess.com"]
[Source "ChessBase"]
[SourceQuality "1"]
[TimeControl "40/5400+30:1800+30"]

1. d4 Nf6 2. c4 g6 3. Nc3 Bg7 4. Nf3 O-O 5. Bg5 d6 6. e3 Nbd7 7. Be2 e5 8. dxe5 dxe5 9. O-O h6 10. Bh4 g5 11. Bg3 Nh5 12. Bxe5 Nxe5 13. Nxe5 Bxe5 14. Bxh5 g4 15. Bxg4 Qh4 16. h3 Rd8 17. Qe2 f5 18. Bf3 Kh8 19. Rfd1 Rg8 20. Kf1 c6 21. Rac1 Be6 22. b3 Rae8 23. Na4 Bc8 24. Nc5 Bh2 25. Qd3 Qe7 26. Na4 Be5 27. Qe2 Qg5 28. Qc2 Rg7 29. Nc5 Bc7 30. Nd3 f4 31. e4 Bb6 32. Qc3 Rd8 33. Ne5 Re8 34. Nf7+ 1-0

[Event "Czech Youth U14 Boys 2024"]
[Site "Kouty nad Desnou"]
[Date "2024.03.09"]
[Round "1.3"]
[White "Mydlar, Matej"]
[Black "Stary, Vojtech"]
[Result "1-0"]
[ECO "B32"]
[WhiteElo "1819"]
[BlackElo "1950"]
[Annotator "RC"]
[PlyCount "89"]
[EventDate "2024.03.10"]
[EventType "swiss"]
[EventRounds "9"]
[EventCountry "CZE"]
[SourceTitle "playchess.com"]
[Source "ChessBase"]
[SourceQuality "1"]
[TimeControl "40/5400+30:1800+30"]

1. e4 c5 2. Nf3 Nc6 3. d4 cxd4 4. Nxd4 e5 5. Nb5 a6 6. Nd6+ Bxd6 7. Qxd6 Qe7 8. Qxe7+ Ngxe7 9. Bc4 Nd4 10. Na3 b5 11. c3 Ne6 12. Bxe6 fxe6 13. c4 Bb7 14. f3 b4 15. Nc2 a5 16. O-O Ba6 17. b3 Nc6 18. Rd1 h6 19. Be3 g5 20. h3 Rg8 21. Bc5 h5 22. Ne3 Rg7 23. Rd6 Ne7 24. Rad1 Ng6 25. Bb6 Bb7 26. g3 Bc6 27. R1d2 Rf7 28. Kg2 h4 29. Ng4 hxg3 30. Kxg3 a4 31. Bc5 axb3 32. axb3 Ra3 33. R6d3 Nf4 34. Bxb4 Ra1 35. Re3 Nh5+ 36. Kh2 Rh7 37. Bc3 Rb1 38. Bxe5 Kf7 39. Bd6 Ke8 40. b4 Ba4 41. b5 e5 42. Bxe5 Rb4 43. Rc3 Rf7 44. Bd6 Rb1 45. Ra3 1-0

[Event "Czech Youth U14 Boys 2024"]
[Site "Kouty nad Desnou"]
[Date "2024.03.09"]
[Round "1.4"]
[White "Kroulik, Vaclav"]
[Black "Stara, Zuzana"]
[Result "1-0"]
[ECO "B11"]
[WhiteElo "1936"]
[BlackElo "1807"]
[Annotator "RC"]
[PlyCount "79"]
[EventDate "2024.03.10"]
[EventType "swiss"]
[EventRounds "9"]
[EventCountry "CZE"]
[SourceTitle "playchess.com"]
[Source "ChessBase"]
[SourceQuality "1"]
[TimeControl "40/5400+30:1800+30"]

1. e4 c6 2. Nf3 d5 3. Nc3 Bg4 4. h3 Bxf3 5. Qxf3 e6 6. d3 Nd7 7. Qg3 a6 8. Be2 Ne7 9. h4 Rc8 10. Be3 Qc7 11. Qh3 Qd6 12. d4 Qb4 13. O-O-O Qa5 14. Kb1 b5 15. Bd3 Qc7 16. f4 dxe4 17. Bxe4 f5 18. Bf3 Nd5 19. Nxd5 cxd5 20. g4 Ba3 21. Bc1 Qxc2+ 22. Ka1 Be7 23. gxf5 Qxf5 24. Bg4 Qc2 25. Bxe6 Qc6 26. Bd2 Qd6 27. Bb4 Qc6 28. Bxe7 Kxe7 29. Rhe1 Kd8 30. Qf5 Re8 31. Qg5+ Re7 32. Qxe7+ Kxe7 33. Bxd5+ Kf6 34. Bxc6 Rxc6 35. d5 Rd6 36. Rd4 Nc5 37. Rc1 Nd7 38. Rc6 Rxc6 39. dxc6 Nb6 40. c7 1-0

[Event "Czech Youth U14 Boys 2024"]
[Site "Kouty nad Desnou"]
[Date "2024.03.09"]
[Round "1.5"]
[White "Sotek, Simon"]
[Black "Vana, Jan"]
[Result "0-1"]
[ECO "B30"]
[WhiteElo "1793"]
[BlackElo "1908"]
[Annotator "RC"]
[PlyCount "66"]
[EventDate "2024.03.10"]
[EventType "swiss"]
[EventRounds "9"]
[EventCountry "CZE"]
[SourceTitle "playchess.com"]
[Source "ChessBase"]
[SourceQuality "1"]
[TimeControl "40/5400+30:1800+30"]

1. e4 c5 2. Nf3 Nc6 3. Nc3 e5 4. Bc4 Be7 5. d3 d6 6. Be3 Nf6 7. h3 O-O 8. Qd2 Nd4 9. Bxd4 cxd4 10. Nd5 Bd7 11. g4 Nxd5 12. Bxd5 Be6 13. Bb3 a5 14. c4 d5 15. a3 dxe4 16. dxe4 f6 17. Qd3 Kh8 18. Ba4 Qc7 19. Rc1 Rad8 20. Bb5 g6 21. Nd2 f5 22. f3 Bg5 23. Rd1 Qf7 24. exf5 gxf5 25. gxf5 Bxf5 26. Ne4 Be3 27. Ke2 Qg6 28. Rh2 Bg1 29. Rxg1 Qxg1 30. Rf2 Bxe4 31. Qxe4 d3+ 32. Kd2 Qxf2+ 33. Kc3 Qc2# 0-1

[Event "Czech Youth U14 Boys 2024"]
[Site "Kouty nad Desnou"]
[Date "2024.03.09"]
[Round "1.7"]
[White "Gregor, Alexandr"]
[Black "Svadlenka, Dominik"]
[Result "0-1"]
[ECO "B12"]
[WhiteElo "1777"]
[BlackElo "1888"]
[Annotator "NA RC"]
[PlyCount "64"]
[EventDate "2024.03.10"]
[EventType "swiss"]
[EventRounds "9"]
[EventCountry "CZE"]
[SourceTitle "playchess.com"]
[Source "ChessBase"]
[SourceQuality "1"]
[TimeControl "40/5400+30:1800+30"]

1. e4 c6 2. d4 d5 3. e5 c5 4. c3 Nc6 5. Nf3 Bg4 6. Be2 e6 7. O-O Qc7 8. Be3 Nge7 9. a4 Nf5 10. Na3 a6 11. Qd2 Be7 12. Rab1 Qa5 13. Qd1 cxd4 14. cxd4 Bxf3 15. Bxf3 Qb4 16. Nc2 Qxa4 17. Qd2 O-O 18. b4 Qb5 19. Be2 Qb6 20. b5 axb5 21. Rxb5 Qc7 22. Rfb1 Rfb8 23. Qc3 Nxe3 24. Nxe3 Bd8 25. g3 b6 26. Qb2 Ra4 27. Nc2 Rba8 28. Qc3 Nxd4 29. Qxc7 Nxe2+ 30. Kf1 Nxg3+ 31. hxg3 Bxc7 32. f4 g5 0-1

[Event "Czech Youth U14 Boys 2024"]
[Site "Kouty nad Desnou"]
[Date "2024.03.09"]
[Round "1.8"]
[White "Svadlenka, Michal"]
[Black "Jezek, Jakub"]
[Result "1-0"]
[ECO "B26"]
[WhiteElo "1869"]
[BlackElo "1854"]
[Annotator "NA RC"]
[PlyCount "135"]
[EventDate "2024.03.10"]
[EventType "swiss"]
[EventRounds "9"]
[EventCountry "CZE"]
[SourceTitle "playchess.com"]
[Source "ChessBase"]
[SourceQuality "1"]
[TimeControl "40/5400+30:1800+30"]

1. e4 c5 2. Nc3 Nc6 3. g3 g6 4. Bg2 Bg7 5. d3 d6 6. Be3 e6 7. Qd2 Nd4 8. Nd1 Ne7 9. c3 Ndc6 10. Bh6 O-O 11. h4 f5 12. h5 Rf7 13. Nf3 e5 14. hxg6 Nxg6 15. Ng5 Rc7 16. exf5 Bxf5 17. Bd5+ Kh8 18. Nf7+ Rxf7 19. Bxf7 Qf6 20. Bd5 Re8 21. Bxg7+ Qxg7 22. Be4 Be6 23. Qg5 Bf7 24. Ne3 Nce7 25. c4 b5 26. Ng4 d5 27. cxd5 Nxd5 28. O-O-O Rc8 29. Bxg6 Bxg6 30. Qxe5 Nb4 31. Qxg7+ Kxg7 32. Ne5 Nxa2+ 33. Kb1 Nb4 34. Nxg6 hxg6 35. Rhe1 Rc7 36. Re5 Kf6 37. f4 a6 38. b3 Rc6 39. Kb2 Re6 40. Rxc5 Re3 41. Kc3 Na2+ 42. Kd4 Rxg3 43. Ke4 b4 44. Re1 Nc3+ 45. Kd4 Rf3 46. Rc6+ Kf7 47. Rxa6 Rxf4+ 48. Kc5 g5 49. d4 Ne4+ 50. Kxb4 Nd2 51. Kc3 Rxd4 52. Kxd4 Nf3+ 53. Ke3 Nxe1 54. Ra2 g4 55. Kf4 Nd3+ 56. Kxg4 Ke6 57. Rd2 Nb4 58. Kf4 Na6 59. Ke3 Ke5 60. Rd8 Ke6 61. Kd3 Nc5+ 62. Kc4 Nd7 63. Kb5 Kd6 64. b4 Kc7 65. Rxd7+ Kxd7 66. Kb6 Kc8 67. Ka7 Kc7 68. b5 1-0

[Event "Czech Youth U14 Boys 2024"]
[Site "Kouty nad Desnou"]
[Date "2024.03.09"]
[Round "1.9"]
[White "Pogorelskiy, Boris"]
[Black "Krivka, Matej"]
[Result "0-1"]
[ECO "B56"]
[WhiteElo "1747"]
[BlackElo "1850"]
[Annotator "NA RC"]
[PlyCount "116"]
[EventDate "2024.03.10"]
[EventType "swiss"]
[EventRounds "9"]
[EventCountry "CZE"]
[SourceTitle "playchess.com"]
[Source "ChessBase"]
[SourceQuality "1"]
[TimeControl "40/5400+30:1800+30"]

1. e4 c5 2. Nf3 Nc6 3. d4 cxd4 4. Nxd4 Nf6 5. Nc3 d6 6. Be3 e5 7. Nf3 h6 8. Bc4 Be6 9. Bb3 Be7 10. h3 O-O 11. O-O Na5 12. Qe2 Nxb3 13. axb3 a6 14. Rfd1 Qc7 15. Nd5 Nxd5 16. exd5 Bd7 17. c4 f5 18. Rac1 f4 19. Bd2 Qc8 20. Kh2 Qe8 21. Bc3 Rc8 22. Nd2 Qg6 23. Qf3 Bf5 24. Re1 Bh4 25. Ba5 Rce8 26. Ne4 Bxe4 27. Qxe4 Qxe4 28. Rxe4 Bxf2 29. Rf1 Be3 30. Bb4 Rd8 31. Be1 Bd4 32. Bc3 Be3 33. Be1 Rc8 34. Bf2 Bxf2 35. Rxf2 Rc7 36. Kg1 g5 37. Rf3 b5 38. Rc3 b4 39. Rd3 Rc5 40. Kf2 Kg7 41. Kf3 Kg6 42. Rd1 h5 43. Rde1 Kf5 44. g4+ fxg3 45. Kxg3 Kg6 46. Ra1 a5 47. Kg2 Rf7 48. Kg3 Ra7 49. Ra4 Rc8 50. Re1 Re8 51. Rea1 Rea8 52. Kf3 Rf7+ 53. Ke3 Raf8 54. c5 Rf3+ 55. Ke2 Rxh3 56. c6 Rxb3 57. c7 Rxb2+ 58. Kd3 Rb3+ 0-1

[Event "Czech Youth U14 Boys 2024"]
[Site "Kouty nad Desnou"]
[Date "2024.03.09"]
[Round "1.10"]
[White "Roubal, Matyas"]
[Black "Srba, Daniel"]
[Result "1-0"]
[ECO "B38"]
[WhiteElo "1849"]
[BlackElo "1742"]
[Annotator "NA RC"]
[PlyCount "53"]
[EventDate "2024.03.10"]
[EventType "swiss"]
[EventRounds "9"]
[EventCountry "CZE"]
[SourceTitle "playchess.com"]
[Source "ChessBase"]
[SourceQuality "1"]
[TimeControl "40/5400+30:1800+30"]

1. e4 c5 2. Nf3 g6 3. d4 cxd4 4. Nxd4 Bg7 5. c4 Nc6 6. Be3 Nf6 7. Nc3 O-O 8. Be2 d6 9. O-O Bd7 10. Qd2 Rc8 11. f3 Re8 12. Nxc6 Rxc6 13. b4 a6 14. Rfd1 Rc8 15. Rac1 b6 16. c5 b5 17. cxd6 e6 18. e5 Rxc3 19. Qxc3 Nd5 20. Qd4 Qb8 21. f4 Bc8 22. Bf3 Bb7 23. Bxd5 Bxd5 24. Qa7 Qxa7 25. Bxa7 Rd8 26. Rxd5 exd5 27. Bb6 1-0

[Event "Czech Youth U14 Boys 2024"]
[Site "Kouty nad Desnou"]
[Date "2024.03.09"]
[Round "1.11"]
[White "Lorenc, Matej"]
[Black "Popov, Roman"]
[Result "0-1"]
[ECO "D17"]
[WhiteElo "1637"]
[BlackElo "2353"]
[Annotator "TA"]
[PlyCount "52"]
[EventDate "2024.03.10"]
[EventType "swiss"]
[EventRounds "9"]
[EventCountry "CZE"]
[SourceTitle "playchess.com"]
[Source "ChessBase"]
[SourceQuality "1"]
[TimeControl "40/5400+30:1800+30"]

{[%evp 10,52,16,-18,-12,-12,31,18,44,12,165,0,56,65,56,50,50,-16,-22,-243,-230,-214,-216,-354,-228,-229,-229,-250,-245,-241,-232,-241,-237,-247,-211,-217,-191,-235,-234,-395,-389,-569,-526,-658,-650]} 1. d4 d5 2. c4 c6 3. Nf3 Nf6 4. Nc3 dxc4 5. a4 Bf5 6. Bg5 Nbd7 7. e3 Qa5 8. Bxc4 Ne4 {[%cal Of5g4] ...Bg4! would now be deadly. The position is equal.} 9. Qb3 {[%csl LRb7,LRf7]} e6 $2 (9... Nd6 $11) 10. O-O $2 (10. Qxb7 $18 Rb8 11. Qxc6 Nxc3 12. Ne5 (12. bxc3 $2 Qxc3+ 13. Kf1 Bd3+ 14. Bxd3 Qxc6 $19) 12... Nd5+ (12... Nxa4+ $2 13. Ke2 $18) 13. Ke2) 10... Bb4 ({Better is} 10... Nxg5 $11 11. Nxg5 Nb6) 11. Nxe4 $14 Bxe4 {[#]} 12. Bxe6 $1 O-O $1 {[#] And now ...Bxf3 would win.} 13. Bf4 Bxf3 $1 $11 (13... fxe6 $2 {perishes.} 14. Qxe6+ Kh8 15. Qxe4 $18 (15. Qxd7 Rae8 $18)) 14. gxf3 $2 (14. Bxd7 $11 {and White has nothing to worry.} Bd5 15. Qd3 Bxg2 16. Rfc1 (16. Kxg2 Qd5+ 17. e4 Qxd7 $11)) 14... fxe6 $19 15. Qxe6+ Rf7 16. Kh1 (16. Be5 $142) 16... Qd5 17. Qxd5 cxd5 18. Rac1 Nb6 19. b3 Rc8 20. Rxc8+ Nxc8 21. Rc1 Nd6 22. Kg2 Kf8 23. Bxd6+ Bxd6 24. e4 $2 (24. Rc8+ {was worth a try.} Ke7 25. Rg8) 24... Rc7 25. Rxc7 (25. Rb1 $142) 25... Bxc7 26. e5 Bb6 {Weighted Error Value: White=0.69/Black=0.39.  Loses game:     	White=1     	---        Missed win:     	White=1     	---        Mistake:       	White=4     	Black=2      Inaccurate:     	White=1     	Black=3      OK:         	White=6     	Black=3      Best:        	---       	Black=2      Strong:       	---       	Black=2      Brilliant:      	White=1     	---} 0-1

[Event "Czech Youth U14 Boys 2024"]
[Site "Kouty nad Desnou"]
[Date "2024.03.09"]
[Round "1.12"]
[White "Soucek, Andrej"]
[Black "Trcalek, Filip"]
[Result "1-0"]
[ECO "E06"]
[WhiteElo "1825"]
[BlackElo "1615"]
[Annotator "NA RC"]
[PlyCount "59"]
[EventDate "2024.03.10"]
[EventType "swiss"]
[EventRounds "9"]
[EventCountry "CZE"]
[SourceTitle "playchess.com"]
[Source "ChessBase"]
[SourceQuality "1"]
[TimeControl "40/5400+30:1800+30"]

1. d4 d5 2. c4 e6 3. Nf3 Nf6 4. g3 Be7 5. Bg2 O-O 6. O-O dxc4 7. Qc2 c5 8. Qxc4 Qb6 9. Nc3 cxd4 10. Nxd4 a6 11. Bf4 Bd6 12. Na4 Qd8 13. Bxd6 Qxd6 14. Rfd1 Qe7 15. Nb6 Qe8 16. Nxa8 e5 17. Nb3 Be6 18. Qc3 Qe7 19. Nb6 Bf5 20. Nd5 Nxd5 21. Rxd5 Re8 22. Rad1 Nc6 23. Qc5 Qg5 24. Rd6 h6 25. Qe3 Qe7 26. Be4 Be6 27. Qd2 Bxb3 28. Bxc6 Bxd1 29. Bxe8 Bxe2 30. Rd7 1-0

[Event "Czech Youth U14 Boys 2024"]
[Site "Kouty nad Desnou"]
[Date "2024.03.10"]
[Round "2.1"]
[White "Topencik, Bruno"]
[Black "Svadlenka, Michal"]
[Result "1/2-1/2"]
[ECO "E61"]
[WhiteElo "2006"]
[BlackElo "1869"]
[Annotator "RC"]
[PlyCount "88"]
[EventDate "2024.03.10"]
[EventType "swiss"]
[EventCountry "CZE"]
[SourceTitle "playchess.com"]
[Source "ChessBase"]
[SourceQuality "1"]
[TimeControl "40/5400+30:1800+30"]

1. d4 {[%emt 0:00:11]} Nf6 {[%emt 0:00:09]} 2. c4 {[%emt 0:00:07]} g6 {[%emt 0:00:03]} 3. Nc3 {[%emt 0:00:05]} Bg7 {[%emt 0:00:06]} 4. Nf3 {[%emt 0:00:23]} O-O {[%emt 0:00:08]} 5. Bg5 {[%emt 0:00:27]} d6 {[%emt 0:00:34]} 6. e3 {[%emt 0:00:34]} Nbd7 {[%emt 0:00:40]} 7. Be2 {[%emt 0:00:50]} Qe8 {[%emt 0:01:45]} 8. Qc2 {[%emt 0:03:39]} e5 {[%emt 0:03:13]} 9. O-O {[%emt 0:01:58]} exd4 {[%emt 0:18:02]} 10. Nxd4 {[%emt 0:02:02]} Nc5 {[%emt 0:02:00]} 11. Bf3 {[%emt 0:04:24]} Ne6 {[%emt 0:10:00]} 12. Bxf6 {[%emt 0:07:05]} Bxf6 {[%emt 0:00:15]} 13. Ndb5 {[%emt 0:00:53]} a6 {[%emt 0:02:13]} 14. Nd5 {[%emt 0:02:23]} Bd8 {[%emt 0:00:11]} 15. Nbc3 {[%emt 0:02:37]} c6 {[%emt 0:03:47]} 16. Nb4 {[%emt 0:09:16]} Ng5 {[%emt 0:07:19]} 17. Be2 {[%emt 0:01:16]} Bf5 {[%emt 0:04:50]} 18. Qd2 {[%emt 0:01:55]} Bc7 {[%emt 0:09:21]} 19. Nc2 {[%emt 0:06:05]} Ne4 {[%emt 0:05:25]} 20. Nxe4 {[%emt 0:05:25]} Bxe4 {[%emt 0:00:37]} 21. Nd4 {[%emt 0:02:45]} c5 {[%emt 0:00:43]} 22. Nb3 {[%emt 0:07:04]} Qe5 {[%emt 0:05:17]} 23. Rac1 {[%emt 0:13:55]} b6 {[%emt 0:03:05]} 24. Qc3 {[%emt 0:01:09]} Rad8 {[%emt 0:02:20]} 25. Rfd1 {[%emt 0:06:06]} Bc6 {[%emt 0:02:41]} 26. Bf3 {[%emt 0:01:51]} Bxf3 {[%emt 0:00:56]} 27. Qxe5 {[%emt 0:00:12]} dxe5 {[%emt 0:00:20]} 28. gxf3 {[%emt 0:00:08]} Rxd1+ {[%emt 0:01:06]} 29. Rxd1 {[%emt 0:00:11]} Rd8 {[%emt 0:00:04]} 30. Rd5 {[%emt 0:03:58]} f5 {[%emt 0:02:04]} 31. Nd2 {[%emt 0:01:26]} Kf7 {[%emt 0:00:38]} 32. Rxd8 {[%emt 0:01:43]} Bxd8 {[%emt 0:00:09]} 33. Nb1 {[%emt 0:01:04]} Ke6 {[%emt 0:01:22]} 34. Nc3 {[%emt 0:00:19]} Kd6 {[%emt 0:00:56]} 35. Kg2 {[%emt 0:01:45]} Kc6 {[%emt 0:03:25]} 36. b3 {[%emt 0:00:28]} b5 {[%emt 0:04:36]} 37. Nd5 {[%emt 0:01:11]} g5 {[%emt 0:02:04]} 38. f4 {[%emt 0:04:52]} Kd6 {[%emt 0:01:01]} 39. fxg5 {[%emt 0:01:22]} Bxg5 {[%emt 0:00:11]} 40. Kf3 {[%emt 0:02:54]} h5 {[%emt 0:02:55]} 41. Kg3 {[%emt 0:33:45]} Bd8 {[%emt 0:30:53]} 42. Nc3 {[%emt 0:00:00]} bxc4 {[%emt 0:00:00]} 43. bxc4 {[%emt 0:00:00]} Ke6 {[%emt 0:00:00]} 44. Nd5 {[%emt 0:00:00]} Kd6 {[%emt 0:00:00]} 1/2-1/2

[Event "Czech Youth U14 Boys 2024"]
[Site "Kouty nad Desnou"]
[Date "2024.03.10"]
[Round "2.2"]
[White "Krivka, Matej"]
[Black "Martirosyan, David"]
[Result "0-1"]
[ECO "B15"]
[WhiteElo "1850"]
[BlackElo "1981"]
[Annotator "RC"]
[PlyCount "88"]
[EventDate "2024.03.10"]
[EventType "swiss"]
[EventCountry "CZE"]
[SourceTitle "playchess.com"]
[Source "ChessBase"]
[SourceQuality "1"]
[TimeControl "40/5400+30:1800+30"]

1. e4 {[%emt 0:00:03]} c6 {[%emt 0:00:31]} 2. d4 {[%emt 0:00:29]} d5 {[%emt 0:00:21]} 3. Nc3 {[%emt 0:00:22]} dxe4 {[%emt 0:00:32]} 4. Nxe4 {[%emt 0:00:07]} Nf6 {[%emt 0:00:23]} 5. Nxf6+ {[%emt 0:00:39]} exf6 {[%emt 0:00:08]} 6. c3 {[%emt 0:00:31]} Bd6 {[%emt 0:00:16]} 7. Bd3 {[%emt 0:00:24]} O-O {[%emt 0:00:17]} 8. Qc2 {[%emt 0:00:42]} Re8+ {[%emt 0:00:07]} 9. Ne2 {[%emt 0:00:13]} h5 {[%emt 0:00:07]} 10. Be3 {[%emt 0:00:43]} Nd7 {[%emt 0:00:13]} 11. O-O-O {[%emt 0:01:23]} Nf8 {[%emt 0:00:24]} 12. c4 {[%emt 0:06:18]} Be6 {[%emt 0:02:32]} 13. Nc3 {[%emt 0:05:35]} Rc8 {[%emt 0:01:48]} 14. Kb1 {[%emt 0:02:27]} Bb4 {[%emt 0:01:30]} 15. Ne4 {[%emt 0:11:46]} Be7 {[%emt 0:00:22]} 16. Ng3 {[%emt 0:02:14]} g6 {[%emt 0:02:36]} 17. Ne2 {[%emt 0:05:15]} b5 {[%emt 0:16:58]} 18. Nf4 {[%emt 0:06:16]} f5 {[%emt 0:17:58]} 19. h3 {[%emt 0:12:08]} Bg5 {[%emt 0:06:28]} 20. g4 {[%emt 0:09:47]} Bxf4 {[%emt 0:04:55]} 21. Bxf4 {[%emt 0:00:46]} fxg4 {[%emt 0:03:22]} 22. hxg4 {[%emt 0:05:09]} Bxg4 {[%emt 0:02:04]} 23. Rdg1 {[%emt 0:05:36]} Qxd4 {[%emt 0:02:31]} 24. Be3 {[%emt 0:02:04]} Qd7 {[%emt 0:02:39]} 25. Bh6 {[%emt 0:05:50]} Rcd8 {[%emt 0:03:34]} 26. Rg3 {[%emt 0:01:46]} bxc4 {[%emt 0:03:29]} 27. Qxc4 {[%emt 0:03:46]} Qd5 {[%emt 0:03:58]} 28. Rc1 {[%emt 0:01:13]} Qxc4 {[%emt 0:02:17]} 29. Rxc4 {[%emt 0:00:34]} Rxd3 {[%emt 0:05:17]} 30. Rcxg4 {[%emt 0:01:18]} Rxg3 {[%emt 0:00:58]} 31. Rxg3 {[%emt 0:00:06]} Ne6 {[%emt 0:00:25]} 32. Rc3 {[%emt 0:01:45]} g5 {[%emt 0:02:10]} 33. Bxg5 {[%emt 0:01:52]} Nxg5 {[%emt 0:01:54]} 34. Rg3 {[%emt 0:00:09]} f6 {[%emt 0:01:19]} 35. f4 {[%emt 0:00:07]} Re4 {[%emt 0:00:18]} 36. fxg5 {[%emt 0:00:41]} Rg4 {[%emt 0:00:12]} 37. Rh3 {[%emt 0:00:23]} Rxg5 {[%emt 0:00:21]} 38. Kc2 {[%emt 0:00:19]} Kf7 {[%emt 0:00:28]} 39. Kd3 {[%emt 0:00:30]} Kg6 {[%emt 0:00:35]} 40. Kc4 {[%emt 0:01:30]} Rg2 {[%emt 0:00:54]} 41. Kb3 {[%emt 0:30:32]} Rg4 {[%emt 0:32:34]} 42. Rc3 {[%emt 0:01:21]} h4 {[%emt 0:00:21]} 43. Rxc6 {[%emt 0:00:22]} h3 {[%emt 0:00:28]} 44. Rc2 {[%emt 0:01:16]} Rh4 {[%emt 0:00:20]} 0-1

[Event "Czech Youth U14 Boys 2024"]
[Site "Kouty nad Desnou"]
[Date "2024.03.10"]
[Round "2.3"]
[White "Roubal, Matyas"]
[Black "Kroulik, Vaclav"]
[Result "1-0"]
[ECO "B56"]
[WhiteElo "1849"]
[BlackElo "1936"]
[Annotator "RC"]
[PlyCount "89"]
[EventDate "2024.03.10"]
[EventType "swiss"]
[EventCountry "CZE"]
[SourceTitle "playchess.com"]
[Source "ChessBase"]
[SourceQuality "1"]
[TimeControl "40/5400+30:1800+30"]

1. e4 {[%emt 0:00:03]} c5 {[%emt 0:00:05]} 2. Nf3 {[%emt 0:00:04]} d6 {[%emt 0:00:06]} 3. d4 {[%emt 0:00:10]} cxd4 {[%emt 0:00:09]} 4. Nxd4 {[%emt 0:00:04]} Nf6 {[%emt 0:00:07]} 5. Nc3 {[%emt 0:00:04]} Nc6 {[%emt 0:00:04]} 6. f3 {[%emt 0:00:37]} e5 {[%emt 0:00:23]} 7. Nb3 {[%emt 0:01:21]} Be7 {[%emt 0:00:51]} 8. Be3 {[%emt 0:01:25]} Be6 {[%emt 0:00:38]} 9. Nd5 {[%emt 0:00:08]} Bxd5 {[%emt 0:00:36]} 10. exd5 {[%emt 0:00:08]} Nb8 {[%emt 0:00:32]} 11. Qd2 {[%emt 0:05:55]} Nbd7 {[%emt 0:02:24]} 12. Na5 {[%emt 0:08:04]} Qc7 {[%emt 0:04:03]} 13. c4 {[%emt 0:03:09]} O-O {[%emt 0:03:45]} 14. Be2 {[%emt 0:01:57]} Nh5 {[%emt 0:05:54]} 15. O-O {[%emt 0:08:01]} f5 {[%emt 0:11:35]} 16. b4 {[%emt 0:07:38]} Nf4 {[%emt 0:19:04]} 17. Bxf4 {[%emt 0:06:00]} exf4 {[%emt 0:00:06]} 18. Qxf4 {[%emt 0:01:01]} Qb6+ {[%emt 0:00:45]} 19. Kh1 {[%emt 0:02:20]} Qxb4 {[%emt 0:00:18]} 20. Nb3 {[%emt 0:01:05]} Bf6 {[%emt 0:07:59]} 21. Rab1 {[%emt 0:05:12]} Be5 {[%emt 0:05:19]} 22. Qe3 {[%emt 0:01:04]} Rae8 {[%emt 0:06:44]} 23. Qxa7 {[%emt 0:15:12]} Ra8 {[%emt 0:09:58]} 24. Qe3 {[%emt 0:00:35]} f4 {[%emt 0:06:18]} 25. Qe4 {[%emt 0:02:16]} Nf6 {[%emt 0:01:24]} 26. Qc2 {[%emt 0:02:28]} Qa4 {[%emt 0:00:18]} 27. Rfe1 {[%emt 0:02:26]} Qxa2 {[%emt 0:00:27]} 28. Qxa2 {[%emt 0:00:08]} Rxa2 {[%emt 0:00:01]} 29. Nc1 {[%emt 0:00:38]} Ra7 {[%emt 0:01:16]} 30. Nd3 {[%emt 0:01:38]} Nd7 {[%emt 0:00:20]} 31. Nxe5 {[%emt 0:00:47]} Nxe5 {[%emt 0:00:06]} 32. Rb6 {[%emt 0:00:13]} Rc8 {[%emt 0:07:06]} 33. Rxd6 {[%emt 0:00:26]} Nxc4 {[%emt 0:00:34]} 34. Bxc4 {[%emt 0:00:06]} Rxc4 {[%emt 0:00:06]} 35. Rd8+ {[%emt 0:02:05]} Kf7 {[%emt 0:00:04]} 36. Rd7+ {[%emt 0:00:10]} Kf8 {[%emt 0:01:40]} 37. h4 {[%emt 0:00:28]} Ra5 {[%emt 0:03:12]} 38. Kh2 {[%emt 0:03:27]} Rd4 {[%emt 0:01:30]} 39. Rc1 {[%emt 0:00:31]} Ke8 {[%emt 0:00:41]} 40. Rxg7 {[%emt 0:00:40]} Raxd5 {[%emt 0:00:53]} 41. Rc8+ {[%emt 0:30:25]} Rd8 {[%emt 0:30:08]} 42. Rxd8+ {[%emt 0:00:06]} Rxd8 {[%emt 0:00:00]} 43. Rxb7 {[%emt 0:00:00]} Rd7 {[%emt 0:00:00]} 44. Rb8+ {[%emt 0:00:00]} Rd8 {[%emt 0:00:00]} 45. Rb4 {[%emt 0:00:00]} 1-0